[Event "Titled Tuesday Blitz August 08 Late 2023"]
[White "Karas, Marek"]
[Black "Santos Flores, Alberto"]
[WhiteFideId "14928558"]
[BlackFideId "3601234"]
[WhiteElo "2429"]
[BlackElo "2546"]
[Result "0-1"]
[Round "7"]
[TimeControl "180+1"]
[Date "2023.08.08"]
[WhiteClock "0:00:09"]
[BlackClock "0:00:07"]
[Board "79"]

1. e4 {[%clk 0:03:00]}  e6 {[%clk 0:03:00]} 2. d4 {[%clk 0:03:00]}  d5 {[%clk 0:02:59]} 3. Nc3 {[%clk 0:03:00]}  Nf6 {[%clk 0:02:59]} 4. Bg5 {[%clk 0:03:00]}  Bb4 {[%clk 0:02:59]} 5. exd5 {[%clk 0:02:57]}  Qxd5 {[%clk 0:02:59]} 6. Bxf6 {[%clk 0:02:52]}  Bxc3+ {[%clk 0:02:59]} 7. bxc3 {[%clk 0:02:52]}  gxf6 {[%clk 0:03:00]} 8. Nf3 {[%clk 0:02:50]}  b6 {[%clk 0:02:58]} 9. Bd3 {[%clk 0:02:49]}  Bb7 {[%clk 0:02:58]} 10. Qe2 {[%clk 0:02:49]}  Nd7 {[%clk 0:02:56]} 11. c4 {[%clk 0:02:43]}  Qh5 {[%clk 0:02:51]} 12. d5 {[%clk 0:02:40]}  O-O-O {[%clk 0:02:46]} 13. dxe6 {[%clk 0:02:29]}  fxe6 {[%clk 0:02:45]} 14. Be4 {[%clk 0:02:27]}  Nc5 {[%clk 0:02:36]} 15. Bxb7+ {[%clk 0:02:25]}  Kxb7 {[%clk 0:02:37]} 16. O-O {[%clk 0:02:26]}  Rhg8 {[%clk 0:02:36]} 17. Rad1 {[%clk 0:02:18]}  Qg4 {[%clk 0:02:24]} 18. g3 {[%clk 0:02:13]}  h5 {[%clk 0:02:23]} 19. Rxd8 {[%clk 0:02:12]}  Rxd8 {[%clk 0:02:24]} 20. Rd1 {[%clk 0:02:12]}  Rxd1+ {[%clk 0:02:23]} 21. Qxd1 {[%clk 0:02:13]}  Qxc4 {[%clk 0:02:23]} 22. a3 {[%clk 0:02:10]}  Qd5 {[%clk 0:02:15]} 23. Qxd5+ {[%clk 0:02:09]}  exd5 {[%clk 0:02:15]} 24. Kf1 {[%clk 0:02:05]}  Nd7 {[%clk 0:02:14]} 25. Nd2 {[%clk 0:01:56]}  c5 {[%clk 0:02:13]} 26. f3 {[%clk 0:01:56]}  f5 {[%clk 0:02:05]} 27. h3 {[%clk 0:01:55]}  Nf6 {[%clk 0:02:03]} 28. Ke2 {[%clk 0:01:51]}  d4 {[%clk 0:02:03]} 29. Nc4 {[%clk 0:01:41]}  Kc6 {[%clk 0:02:03]} 30. Kd3 {[%clk 0:01:37]}  b5 {[%clk 0:02:01]} 31. Ne5+ {[%clk 0:01:37]}  Kd5 {[%clk 0:02:01]} 32. Ng6 {[%clk 0:01:36]}  c4+ {[%clk 0:02:00]} 33. Kd2 {[%clk 0:01:36]}  a5 {[%clk 0:01:57]} 34. Nf4+ {[%clk 0:01:34]}  Ke5 {[%clk 0:01:52]} 35. Ng6+ {[%clk 0:01:34]}  Kd6 {[%clk 0:01:52]} 36. Nh4 {[%clk 0:01:34]}  Ke6 {[%clk 0:01:50]} 37. Ng6 {[%clk 0:01:33]}  b4 {[%clk 0:01:48]} 38. axb4 {[%clk 0:01:34]}  axb4 {[%clk 0:01:48]} 39. Nf4+ {[%clk 0:01:35]}  Kd6 {[%clk 0:01:48]} 40. h4 {[%clk 0:01:32]}  d3 {[%clk 0:00:45]} 41. cxd3 {[%clk 0:01:25]}  c3+ {[%clk 0:00:45]} 42. Kc2 {[%clk 0:01:25]}  Kc5 {[%clk 0:00:44]} 43. Ne2 {[%clk 0:01:09]}  Nd5 {[%clk 0:00:42]} 44. Kb3 {[%clk 0:01:06]}  Ne3 {[%clk 0:00:42]} 45. d4+ {[%clk 0:00:53]}  Kb5 {[%clk 0:00:39]} 46. Nxc3+ {[%clk 0:00:42]}  bxc3 {[%clk 0:00:38]} 47. Kxc3 {[%clk 0:00:42]}  Nd5+ {[%clk 0:00:35]} 48. Kb3 {[%clk 0:00:36]}  Kc6 {[%clk 0:00:24]} 49. Kc4 {[%clk 0:00:30]}  Kd6 {[%clk 0:00:19]} 50. Kd3 {[%clk 0:00:29]}  Ke6 {[%clk 0:00:19]} 51. g4 {[%clk 0:00:18]}  fxg4 {[%clk 0:00:17]} 52. fxg4 {[%clk 0:00:19]}  hxg4 {[%clk 0:00:17]} 53. Ke4 {[%clk 0:00:20]}  Nf6+ {[%clk 0:00:12]} 54. Kf4 {[%clk 0:00:19]}  Kf7 {[%clk 0:00:10]} 55. d5 {[%clk 0:00:12]}  Kg6 {[%clk 0:00:10]} 56. d6 {[%clk 0:00:07]}  Kh5 {[%clk 0:00:10]} 57. Kf5 {[%clk 0:00:02]}  Nd7 {[%clk 0:00:11]} 58. Ke6 {[%clk 0:00:03]}  g3 {[%clk 0:00:10]} 59. Kxd7 {[%clk 0:00:03]}  g2 {[%clk 0:00:10]} 60. Ke7 {[%clk 0:00:03]}  g1=Q {[%clk 0:00:11]} 61. d7 {[%clk 0:00:04]}  Qe3+ {[%clk 0:00:11]} 62. Kd6 {[%clk 0:00:04]}  Qd4+ {[%clk 0:00:11]} 63. Ke7 {[%clk 0:00:04]}  Qxh4+ {[%clk 0:00:11]} 64. Kd6 {[%clk 0:00:04]}  Qd4+ {[%clk 0:00:11]} 65. Ke7 {[%clk 0:00:04]}  Qe5+ {[%clk 0:00:11]} 66. Kf7 {[%clk 0:00:05]}  Qd6 {[%clk 0:00:10]} 67. Ke8 {[%clk 0:00:05]}  Qe6+ {[%clk 0:00:10]} 68. Kd8 {[%clk 0:00:06]}  Kg5 {[%clk 0:00:10]} 69. Kc7 {[%clk 0:00:07]}  Qc4+ {[%clk 0:00:10]} 70. Kd6 {[%clk 0:00:07]}  Qd4+ {[%clk 0:00:09]} 71. Ke7 {[%clk 0:00:07]}  Qe5+ {[%clk 0:00:08]} 72. Kf7 {[%clk 0:00:08]}  Qd6 {[%clk 0:00:08]} 73. Ke8 {[%clk 0:00:08]}  Qe6+ {[%clk 0:00:08]} 74. Kd8 {[%clk 0:00:09]}  Kf6 {[%clk 0:00:08]} 75. Kc7 {[%clk 0:00:09]}  Qc4+ {[%clk 0:00:08]} 76. Kd6 {[%clk 0:00:09]}  Qd4+ {[%clk 0:00:08]} 77. Kc7 {[%clk 0:00:09]}  Qc5+ {[%clk 0:00:08]} 78. Kd8 {[%clk 0:00:09]}  Ke6 {[%clk 0:00:07]} 79. Ke8 {[%clk 0:00:09]}  Qe7# {[%clk 0:00:07]} 0-1


[Site "https://www.chess.com"]

[Event "Titled Tuesday Blitz August 08 Late 2023"]
[White "littlepinkyboy"]
[Black "Janaszak, Dawid"]
[BlackFideId "1119206"]
[WhiteElo "2416"]
[BlackElo "2540"]
[Result "1-0"]
[Round "7"]
[TimeControl "180+1"]
[Date "2023.08.08"]
[WhiteClock "0:00:13"]
[BlackClock "0:00:09"]
[Board "81"]

1. e4 {[%clk 0:03:00]}  e5 {[%clk 0:02:57]} 2. Nf3 {[%clk 0:02:59]}  Nc6 {[%clk 0:02:58]} 3. Bb5 {[%clk 0:03:00]}  a6 {[%clk 0:02:57]} 4. Ba4 {[%clk 0:03:00]}  Nf6 {[%clk 0:02:57]} 5. O-O {[%clk 0:03:00]}  d6 {[%clk 0:02:58]} 6. d4 {[%clk 0:03:00]}  b5 {[%clk 0:02:56]} 7. Bb3 {[%clk 0:02:57]}  Nxd4 {[%clk 0:02:55]} 8. Nxd4 {[%clk 0:02:56]}  exd4 {[%clk 0:02:56]} 9. a4 {[%clk 0:02:56]}  Rb8 {[%clk 0:02:51]} 10. axb5 {[%clk 0:02:50]}  axb5 {[%clk 0:02:52]} 11. Qxd4 {[%clk 0:02:47]}  Be7 {[%clk 0:02:51]} 12. Nc3 {[%clk 0:02:44]}  O-O {[%clk 0:02:47]} 13. Qd1 {[%clk 0:02:32]}  Bg4 {[%clk 0:02:40]} 14. f3 {[%clk 0:02:29]}  Be6 {[%clk 0:02:40]} 15. Nd5 {[%clk 0:02:21]}  Nd7 {[%clk 0:02:31]} 16. Be3 {[%clk 0:02:13]}  c6 {[%clk 0:02:23]} 17. Nxe7+ {[%clk 0:02:10]}  Qxe7 {[%clk 0:02:22]} 18. Bxe6 {[%clk 0:02:11]}  Qxe6 {[%clk 0:02:16]} 19. Ra7 {[%clk 0:02:07]}  f5 {[%clk 0:02:12]} 20. Bf4 {[%clk 0:01:53]}  Ne5 {[%clk 0:01:56]} 21. exf5 {[%clk 0:01:37]}  Rxf5 {[%clk 0:01:55]} 22. Bg3 {[%clk 0:01:33]}  Nc4 {[%clk 0:01:52]} 23. Re1 {[%clk 0:01:29]}  Qd5 {[%clk 0:01:04]} 24. Qxd5+ {[%clk 0:01:25]}  Rxd5 {[%clk 0:01:04]} 25. Ree7 {[%clk 0:01:20]}  Rg5 {[%clk 0:00:58]} 26. b3 {[%clk 0:01:19]}  Nd2 {[%clk 0:00:45]} 27. Bf4 {[%clk 0:01:00]}  Nxf3+ {[%clk 0:00:37]} 28. Kf2 {[%clk 0:00:59]}  Rf8 {[%clk 0:00:31]} 29. Kxf3 {[%clk 0:00:50]}  Rg6 {[%clk 0:00:22]} 30. g3 {[%clk 0:00:48]}  h5 {[%clk 0:00:20]} 31. Ke3 {[%clk 0:00:34]}  h4 {[%clk 0:00:19]} 32. Rad7 {[%clk 0:00:30]}  hxg3 {[%clk 0:00:18]} 33. hxg3 {[%clk 0:00:29]}  Rff6 {[%clk 0:00:18]} 34. Re8+ {[%clk 0:00:24]}  Kh7 {[%clk 0:00:18]} 35. Rdd8 {[%clk 0:00:23]}  Rg4 {[%clk 0:00:19]} 36. Bxd6 {[%clk 0:00:18]}  Rf1 {[%clk 0:00:17]} 37. Bf4 {[%clk 0:00:17]}  Rc1 {[%clk 0:00:15]} 38. Kf3 {[%clk 0:00:16]}  Rxf4+ {[%clk 0:00:12]} 39. Kxf4 {[%clk 0:00:17]}  Rxc2 {[%clk 0:00:12]} 40. Rh8+ {[%clk 0:00:15]}  Kg6 {[%clk 0:00:13]} 41. Rd6+ {[%clk 0:00:16]}  Kf7 {[%clk 0:00:13]} 42. Rc8 {[%clk 0:00:16]}  Rc3 {[%clk 0:00:13]} 43. Rcxc6 {[%clk 0:00:15]}  Rxb3 {[%clk 0:00:13]} 44. Rc7+ {[%clk 0:00:16]}  Kg8 {[%clk 0:00:14]} 45. Rd8+ {[%clk 0:00:14]}  Kh7 {[%clk 0:00:14]} 46. Rdd7 {[%clk 0:00:14]}  Rb4+ {[%clk 0:00:14]} 47. Kg5 {[%clk 0:00:14]}  Rb3 {[%clk 0:00:14]} 48. Rxg7+ {[%clk 0:00:14]}  Kh8 {[%clk 0:00:09]} 49. Kh6 {[%clk 0:00:13]} 1-0


[Site "https://www.chess.com"]

[Event "Titled Tuesday Blitz August 08 Late 2023"]
[White "Bettalli, Francesco"]
[Black "Slovineanu, Viacheslav"]
[WhiteFideId "2816453"]
[BlackFideId "13900510"]
[WhiteElo "2525"]
[BlackElo "2413"]
[Result "1-0"]
[Round "7"]
[TimeControl "180+1"]
[Date "2023.08.08"]
[WhiteClock "0:00:45"]
[BlackClock "0:00:01"]
[Board "84"]

1. e4 {[%clk 0:02:55]}  e6 {[%clk 0:02:58]} 2. d4 {[%clk 0:02:54]}  d5 {[%clk 0:02:57]} 3. Nc3 {[%clk 0:02:47]}  Bb4 {[%clk 0:02:57]} 4. exd5 {[%clk 0:02:42]}  Bxc3+ {[%clk 0:02:52]} 5. bxc3 {[%clk 0:02:40]}  exd5 {[%clk 0:02:52]} 6. Bd3 {[%clk 0:02:37]}  Nf6 {[%clk 0:02:49]} 7. Nf3 {[%clk 0:02:37]}  Bg4 {[%clk 0:02:39]} 8. h3 {[%clk 0:02:36]}  Bh5 {[%clk 0:02:38]} 9. O-O {[%clk 0:02:33]}  Bg6 {[%clk 0:02:37]} 10. Ba3 {[%clk 0:02:32]}  Ne4 {[%clk 0:02:14]} 11. Re1 {[%clk 0:02:30]}  f6 {[%clk 0:02:14]} 12. c4 {[%clk 0:02:28]}  c6 {[%clk 0:02:12]} 13. cxd5 {[%clk 0:02:28]}  cxd5 {[%clk 0:02:12]} 14. Nh4 {[%clk 0:02:29]}  Kf7 {[%clk 0:02:00]} 15. Nxg6 {[%clk 0:02:27]}  hxg6 {[%clk 0:01:59]} 16. Rxe4 {[%clk 0:02:19]}  dxe4 {[%clk 0:01:58]} 17. Bc4+ {[%clk 0:02:20]}  Ke8 {[%clk 0:01:57]} 18. Qg4 {[%clk 0:02:20]}  Qd7 {[%clk 0:01:40]} 19. Be6 {[%clk 0:01:52]}  Qc7 {[%clk 0:01:19]} 20. Qxe4 {[%clk 0:01:41]}  Kd8 {[%clk 0:01:18]} 21. Qd5+ {[%clk 0:01:39]}  Nd7 {[%clk 0:01:15]} 22. Re1 {[%clk 0:01:27]}  Qc6 {[%clk 0:00:57]} 23. Be7+ {[%clk 0:01:25]}  Kc8 {[%clk 0:00:51]} 24. Qb3 {[%clk 0:01:11]}  Kc7 {[%clk 0:00:48]} 25. Re3 {[%clk 0:01:08]}  Rae8 {[%clk 0:00:36]} 26. Rc3 {[%clk 0:01:06]}  Rxe7 {[%clk 0:00:36]} 27. d5 {[%clk 0:01:05]}  Qxc3 {[%clk 0:00:28]} 28. Qxc3+ {[%clk 0:01:04]}  Kb8 {[%clk 0:00:22]} 29. Qb4 {[%clk 0:00:48]}  Rhe8 {[%clk 0:00:20]} 30. Qd6+ {[%clk 0:00:48]}  Kc8 {[%clk 0:00:19]} 31. c4 {[%clk 0:00:48]}  Rxe6 {[%clk 0:00:11]} 32. dxe6 {[%clk 0:00:47]}  Ne5 {[%clk 0:00:11]} 33. f4 {[%clk 0:00:45]}  Nc6 {[%clk 0:00:10]} 34. Qd7+ {[%clk 0:00:45]}  Kb8 {[%clk 0:00:01]} 35. Qxe8+ {[%clk 0:00:45]} 1-0


[Site "https://www.chess.com"]

[Event "Titled Tuesday Blitz August 08 Late 2023"]
[White "Chor, Kevin"]
[Black "Mazurkiewicz, Michal"]
[WhiteFideId "2090740"]
[BlackFideId "1124943"]
[WhiteElo "2516"]
[BlackElo "2407"]
[Result "1-0"]
[Round "7"]
[TimeControl "180+1"]
[Date "2023.08.08"]
[WhiteClock "0:00:18"]
[BlackClock "0:00:00"]
[Board "86"]

1. e4 {[%clk 0:03:00]}  d6 {[%clk 0:03:00]} 2. d4 {[%clk 0:03:00]}  Nf6 {[%clk 0:03:00]} 3. Nc3 {[%clk 0:03:00]}  c6 {[%clk 0:03:01]} 4. f4 {[%clk 0:03:00]}  Qb6 {[%clk 0:03:01]} 5. e5 {[%clk 0:02:42]}  Nd5 {[%clk 0:03:00]} 6. Ne4 {[%clk 0:02:29]}  dxe5 {[%clk 0:02:49]} 7. fxe5 {[%clk 0:02:30]}  Bf5 {[%clk 0:02:46]} 8. Ng3 {[%clk 0:02:30]}  Bg6 {[%clk 0:02:46]} 9. a3 {[%clk 0:02:08]}  e6 {[%clk 0:02:45]} 10. c4 {[%clk 0:02:04]}  Nc7 {[%clk 0:02:43]} 11. h4 {[%clk 0:01:59]}  h6 {[%clk 0:02:41]} 12. h5 {[%clk 0:01:49]}  Bh7 {[%clk 0:02:41]} 13. c5 {[%clk 0:01:48]}  Bxc5 {[%clk 0:02:30]} 14. dxc5 {[%clk 0:01:49]}  Qxc5 {[%clk 0:02:30]} 15. Nf3 {[%clk 0:01:45]}  Nd7 {[%clk 0:02:27]} 16. Bf4 {[%clk 0:01:36]}  Nd5 {[%clk 0:02:25]} 17. Rc1 {[%clk 0:01:36]}  Qb6 {[%clk 0:02:05]} 18. Qd2 {[%clk 0:01:27]}  Nc5 {[%clk 0:01:39]} 19. Bc4 {[%clk 0:01:14]}  O-O-O {[%clk 0:01:34]} 20. b4 {[%clk 0:00:59]}  Nd3+ {[%clk 0:00:35]} 21. Bxd3 {[%clk 0:00:57]}  Bxd3 {[%clk 0:00:35]} 22. Rc5 {[%clk 0:00:53]}  Bb5 {[%clk 0:00:12]} 23. Kf2 {[%clk 0:00:51]}  Qa6 {[%clk 0:00:11]} 24. Rhc1 {[%clk 0:00:43]}  Kb8 {[%clk 0:00:06]} 25. Ne4 {[%clk 0:00:22]}  Qxa3 {[%clk 0:00:03]} 26. Nd6 {[%clk 0:00:21]}  Qxb4 {[%clk 0:00:00]} 27. Rxd5 {[%clk 0:00:18]} 1-0


[Site "https://www.chess.com"]

[Event "Titled Tuesday Blitz August 08 Late 2023"]
[White "Eggleston, Thomas A"]
[Black "chess123456s"]
[WhiteFideId "412139"]
[WhiteElo "2392"]
[BlackElo "2516"]
[Result "1/2-1/2"]
[Round "7"]
[TimeControl "180+1"]
[Date "2023.08.08"]
[WhiteClock "0:00:33"]
[BlackClock "0:00:20"]
[Board "87"]

1. e4 {[%clk 0:03:00]}  e5 {[%clk 0:02:58]} 2. Nf3 {[%clk 0:02:58]}  Nc6 {[%clk 0:02:58]} 3. d4 {[%clk 0:02:57]}  exd4 {[%clk 0:02:58]} 4. Nxd4 {[%clk 0:02:58]}  Nf6 {[%clk 0:02:57]} 5. Nc3 {[%clk 0:02:58]}  Bb4 {[%clk 0:02:56]} 6. Nxc6 {[%clk 0:02:58]}  bxc6 {[%clk 0:02:56]} 7. Bd3 {[%clk 0:02:58]}  O-O {[%clk 0:02:56]} 8. O-O {[%clk 0:02:57]}  d5 {[%clk 0:02:57]} 9. exd5 {[%clk 0:02:58]}  cxd5 {[%clk 0:02:57]} 10. h3 {[%clk 0:02:58]}  Be6 {[%clk 0:02:53]} 11. Qf3 {[%clk 0:02:55]}  Rb8 {[%clk 0:02:52]} 12. Bf4 {[%clk 0:02:48]}  Bd6 {[%clk 0:02:52]} 13. Rab1 {[%clk 0:02:43]}  c5 {[%clk 0:02:49]} 14. Bxd6 {[%clk 0:02:33]}  Qxd6 {[%clk 0:02:50]} 15. Bf5 {[%clk 0:02:16]}  d4 {[%clk 0:02:45]} 16. Ne4 {[%clk 0:02:08]}  Nxe4 {[%clk 0:02:43]} 17. Qxe4 {[%clk 0:01:52]}  Bxf5 {[%clk 0:02:37]} 18. Qxf5 {[%clk 0:01:52]}  Rfe8 {[%clk 0:02:37]} 19. Rfe1 {[%clk 0:01:43]}  g6 {[%clk 0:02:37]} 20. Rxe8+ {[%clk 0:01:33]}  Rxe8 {[%clk 0:02:38]} 21. Qf3 {[%clk 0:01:33]}  Qe6 {[%clk 0:02:34]} 22. b3 {[%clk 0:01:28]}  Qe2 {[%clk 0:02:27]} 23. Qxe2 {[%clk 0:01:26]}  Rxe2 {[%clk 0:02:28]} 24. Rc1 {[%clk 0:01:26]}  Kf8 {[%clk 0:02:18]} 25. Kf1 {[%clk 0:01:26]}  Re5 {[%clk 0:02:16]} 26. Re1 {[%clk 0:01:22]}  Rd5 {[%clk 0:02:14]} 27. Re4 {[%clk 0:01:19]}  f5 {[%clk 0:02:08]} 28. Rh4 {[%clk 0:01:17]}  Kg7 {[%clk 0:02:05]} 29. Rf4 {[%clk 0:01:05]}  g5 {[%clk 0:02:02]} 30. Rf3 {[%clk 0:01:05]}  Kf6 {[%clk 0:02:00]} 31. Ke2 {[%clk 0:01:05]}  Ke5 {[%clk 0:01:59]} 32. Kd3 {[%clk 0:01:06]}  h5 {[%clk 0:01:52]} 33. Kc4 {[%clk 0:01:05]}  f4 {[%clk 0:01:46]} 34. Rd3 {[%clk 0:01:01]}  g4 {[%clk 0:01:35]} 35. hxg4 {[%clk 0:01:01]}  hxg4 {[%clk 0:01:36]} 36. Rd1 {[%clk 0:01:02]}  Rd8 {[%clk 0:01:32]} 37. Re1+ {[%clk 0:01:01]}  Kf5 {[%clk 0:01:32]} 38. Re7 {[%clk 0:00:59]}  Rh8 {[%clk 0:01:18]} 39. Kxc5 {[%clk 0:00:57]}  Rc8+ {[%clk 0:01:16]} 40. Kxd4 {[%clk 0:00:57]}  Rxc2 {[%clk 0:01:16]} 41. Rf7+ {[%clk 0:00:56]}  Kg5 {[%clk 0:01:16]} 42. Rg7+ {[%clk 0:00:56]}  Kf5 {[%clk 0:01:15]} 43. Rf7+ {[%clk 0:00:55]}  Kg5 {[%clk 0:01:15]} 44. Rg7+ {[%clk 0:00:54]}  Kh5 {[%clk 0:01:10]} 45. Rh7+ {[%clk 0:00:52]}  Kg6 {[%clk 0:01:10]} 46. Rxa7 {[%clk 0:00:51]}  Rxf2 {[%clk 0:01:09]} 47. Ke4 {[%clk 0:00:51]}  Kg5 {[%clk 0:01:06]} 48. Ra5+ {[%clk 0:00:50]}  Kh4 {[%clk 0:01:05]} 49. Rf5 {[%clk 0:00:48]}  Kg3 {[%clk 0:01:05]} 50. a4 {[%clk 0:00:45]}  Re2+ {[%clk 0:01:03]} 51. Kd4 {[%clk 0:00:44]}  f3 {[%clk 0:00:49]} 52. gxf3 {[%clk 0:00:43]}  gxf3 {[%clk 0:00:50]} 53. a5 {[%clk 0:00:43]}  Kg4 {[%clk 0:00:43]} 54. Rf8 {[%clk 0:00:42]}  Rd2+ {[%clk 0:00:42]} 55. Kc3 {[%clk 0:00:39]}  Rd5 {[%clk 0:00:42]} 56. Rg8+ {[%clk 0:00:35]}  Kf4 {[%clk 0:00:40]} 57. Rg1 {[%clk 0:00:34]}  Rxa5 {[%clk 0:00:39]} 58. b4 {[%clk 0:00:34]}  Ra3+ {[%clk 0:00:38]} 59. Kc4 {[%clk 0:00:34]}  Ke4 {[%clk 0:00:34]} 60. b5 {[%clk 0:00:33]}  f2 {[%clk 0:00:27]} 61. Rb1 {[%clk 0:00:33]}  Re3 {[%clk 0:00:21]} 62. Rf1 {[%clk 0:00:33]}  Kf3 {[%clk 0:00:20]} 63. b6 {[%clk 0:00:32]}  Re6 {[%clk 0:00:18]} 64. Kc5 {[%clk 0:00:32]}  Ke2 {[%clk 0:00:18]} 65. Rxf2+ {[%clk 0:00:32]}  Kxf2 {[%clk 0:00:19]} 66. b7 {[%clk 0:00:32]}  Re8 {[%clk 0:00:19]} 67. Kc6 {[%clk 0:00:32]}  Rh8 {[%clk 0:00:19]} 68. Kc7 {[%clk 0:00:32]}  Ke3 {[%clk 0:00:20]} 69. b8=Q {[%clk 0:00:32]}  Rxb8 {[%clk 0:00:20]} 70. Kxb8 {[%clk 0:00:33]} 1/2-1/2


[Site "https://www.chess.com"]

[Event "Titled Tuesday Blitz August 08 Late 2023"]
[White "Andrews, Todd"]
[Black "Dragomirescu, Robin-Alexandru"]
[WhiteFideId "2012456"]
[BlackFideId "1213849"]
[WhiteElo "2380"]
[BlackElo "2511"]
[Result "1/2-1/2"]
[Round "7"]
[TimeControl "180+1"]
[Date "2023.08.08"]
[WhiteClock "0:00:09"]
[BlackClock "0:00:12"]
[Board "90"]

1. e4 {[%clk 0:03:00]}  g6 {[%clk 0:03:00]} 2. d4 {[%clk 0:02:59]}  Nf6 {[%clk 0:02:56]} 3. e5 {[%clk 0:02:58]}  Nh5 {[%clk 0:02:55]} 4. Be2 {[%clk 0:02:54]}  d6 {[%clk 0:02:55]} 5. Bxh5 {[%clk 0:02:52]}  gxh5 {[%clk 0:02:54]} 6. Qe2 {[%clk 0:02:52]}  dxe5 {[%clk 0:02:53]} 7. Qxe5 {[%clk 0:02:50]}  Rg8 {[%clk 0:02:52]} 8. c3 {[%clk 0:02:36]}  Rxg2 {[%clk 0:02:48]} 9. Qxh5 {[%clk 0:02:35]}  c5 {[%clk 0:02:32]} 10. Be3 {[%clk 0:02:26]}  cxd4 {[%clk 0:02:31]} 11. cxd4 {[%clk 0:02:25]}  Nc6 {[%clk 0:02:24]} 12. Nc3 {[%clk 0:02:20]}  Bg7 {[%clk 0:02:18]} 13. O-O-O {[%clk 0:02:19]}  Bg4 {[%clk 0:02:18]} 14. Qg5 {[%clk 0:02:03]}  Bf3 {[%clk 0:02:11]} 15. Nxf3 {[%clk 0:01:50]}  Rxg5 {[%clk 0:02:09]} 16. Nxg5 {[%clk 0:01:51]}  Qa5 {[%clk 0:02:00]} 17. Rhe1 {[%clk 0:01:43]}  Nb4 {[%clk 0:01:55]} 18. a3 {[%clk 0:01:39]}  Nd5 {[%clk 0:01:53]} 19. Nge4 {[%clk 0:01:32]}  Rc8 {[%clk 0:01:47]} 20. Bd2 {[%clk 0:01:21]}  Bxd4 {[%clk 0:01:37]} 21. Nd6+ {[%clk 0:01:20]}  Kd8 {[%clk 0:01:19]} 22. Nxc8 {[%clk 0:01:12]}  Kxc8 {[%clk 0:01:11]} 23. Nxd5 {[%clk 0:01:04]}  Qxd5 {[%clk 0:01:12]} 24. Be3 {[%clk 0:00:55]}  Qc5+ {[%clk 0:01:08]} 25. Kb1 {[%clk 0:00:54]}  Bxe3 {[%clk 0:01:08]} 26. Rxe3 {[%clk 0:00:48]}  Qf5+ {[%clk 0:01:07]} 27. Ka1 {[%clk 0:00:47]}  a6 {[%clk 0:00:55]} 28. Rxe7 {[%clk 0:00:41]}  Qxf2 {[%clk 0:00:49]} 29. Rdd7 {[%clk 0:00:28]}  Qxh2 {[%clk 0:00:30]} 30. Rxf7 {[%clk 0:00:20]}  Qh1+ {[%clk 0:00:28]} 31. Ka2 {[%clk 0:00:19]}  h5 {[%clk 0:00:28]} 32. Rde7 {[%clk 0:00:13]}  Kb8 {[%clk 0:00:28]} 33. Rh7 {[%clk 0:00:11]}  h4 {[%clk 0:00:25]} 34. Re8+ {[%clk 0:00:10]}  Ka7 {[%clk 0:00:25]} 35. Reh8 {[%clk 0:00:11]}  Qd5+ {[%clk 0:00:24]} 36. Ka1 {[%clk 0:00:12]}  Qd1+ {[%clk 0:00:21]} 37. Ka2 {[%clk 0:00:12]}  a5 {[%clk 0:00:20]} 38. Rxh4 {[%clk 0:00:12]}  a4 {[%clk 0:00:20]} 39. R8h7 {[%clk 0:00:10]}  Qd5+ {[%clk 0:00:20]} 40. Kb1 {[%clk 0:00:10]}  Qd1+ {[%clk 0:00:19]} 41. Ka2 {[%clk 0:00:10]}  Ka6 {[%clk 0:00:19]} 42. R7h5 {[%clk 0:00:10]}  b6 {[%clk 0:00:17]} 43. Rh3 {[%clk 0:00:10]}  b5 {[%clk 0:00:16]} 44. R5h4 {[%clk 0:00:11]}  Ka5 {[%clk 0:00:16]} 45. Rh5 {[%clk 0:00:09]}  Qd4 {[%clk 0:00:16]} 46. R3h4 {[%clk 0:00:09]}  Qd1 {[%clk 0:00:13]} 47. Rh3 {[%clk 0:00:09]}  Qd8 {[%clk 0:00:12]} 48. R3h4 {[%clk 0:00:10]}  Qd1 {[%clk 0:00:12]} 49. Rh3 {[%clk 0:00:09]} 1/2-1/2


[Site "https://www.chess.com"]

[Event "Titled Tuesday Blitz August 08 Late 2023"]
[White "Hansen, Torbjorn Ringdal"]
[Black "Mazibuko, Khanya"]
[WhiteFideId "1501720"]
[BlackFideId "14321041"]
[WhiteElo "2511"]
[BlackElo "2353"]
[Result "1-0"]
[Round "7"]
[TimeControl "180+1"]
[Date "2023.08.08"]
[WhiteClock "0:01:04"]
[BlackClock "0:00:02"]
[Board "91"]

1. e4 {[%clk 0:03:00]}  c5 {[%clk 0:02:55]} 2. Nf3 {[%clk 0:03:00]}  e6 {[%clk 0:02:55]} 3. c3 {[%clk 0:02:59]}  Nf6 {[%clk 0:02:55]} 4. Bd3 {[%clk 0:02:58]}  d6 {[%clk 0:02:50]} 5. Bc2 {[%clk 0:02:57]}  Nc6 {[%clk 0:02:47]} 6. d4 {[%clk 0:02:57]}  e5 {[%clk 0:02:45]} 7. O-O {[%clk 0:02:50]}  Be7 {[%clk 0:02:41]} 8. dxc5 {[%clk 0:02:41]}  dxc5 {[%clk 0:02:41]} 9. Qxd8+ {[%clk 0:02:40]}  Bxd8 {[%clk 0:02:39]} 10. Be3 {[%clk 0:02:34]}  Be7 {[%clk 0:02:25]} 11. h3 {[%clk 0:02:34]}  h6 {[%clk 0:02:21]} 12. a4 {[%clk 0:02:31]}  Be6 {[%clk 0:02:20]} 13. Na3 {[%clk 0:02:24]}  a6 {[%clk 0:02:18]} 14. Rfd1 {[%clk 0:02:20]}  Nd7 {[%clk 0:02:06]} 15. Kf1 {[%clk 0:02:14]}  O-O-O {[%clk 0:01:58]} 16. Ke1 {[%clk 0:02:13]}  c4 {[%clk 0:01:49]} 17. Nd2 {[%clk 0:02:10]}  Bxa3 {[%clk 0:01:48]} 18. Rxa3 {[%clk 0:02:09]}  Kc7 {[%clk 0:01:40]} 19. Rda1 {[%clk 0:02:06]}  b6 {[%clk 0:01:39]} 20. Bd1 {[%clk 0:02:05]}  Nc5 {[%clk 0:01:32]} 21. Bxc5 {[%clk 0:02:02]}  bxc5 {[%clk 0:01:33]} 22. Be2 {[%clk 0:02:02]}  Na5 {[%clk 0:01:33]} 23. Rd1 {[%clk 0:01:54]}  Rb8 {[%clk 0:01:31]} 24. Ra2 {[%clk 0:01:48]}  Rb6 {[%clk 0:01:31]} 25. Rb1 {[%clk 0:01:36]}  Rhb8 {[%clk 0:01:32]} 26. Kd1 {[%clk 0:01:37]}  Nb3 {[%clk 0:01:17]} 27. Nxb3 {[%clk 0:01:36]}  cxb3 {[%clk 0:01:17]} 28. Raa1 {[%clk 0:01:35]}  c4 {[%clk 0:01:08]} 29. Ke1 {[%clk 0:01:34]}  Rd6 {[%clk 0:01:05]} 30. Rd1 {[%clk 0:01:33]}  Rbd8 {[%clk 0:01:06]} 31. h4 {[%clk 0:01:22]}  Kb6 {[%clk 0:00:59]} 32. a5+ {[%clk 0:01:19]}  Kb5 {[%clk 0:00:59]} 33. g3 {[%clk 0:01:18]}  Bc8 {[%clk 0:00:45]} 34. Rxd6 {[%clk 0:01:15]}  Rxd6 {[%clk 0:00:45]} 35. Ra3 {[%clk 0:01:15]}  Kc5 {[%clk 0:00:39]} 36. Ra4 {[%clk 0:01:14]}  Be6 {[%clk 0:00:37]} 37. Rb4 {[%clk 0:01:14]}  f5 {[%clk 0:00:26]} 38. exf5 {[%clk 0:01:12]}  Bf7 {[%clk 0:00:24]} 39. g4 {[%clk 0:01:11]}  e4 {[%clk 0:00:22]} 40. g5 {[%clk 0:01:11]}  hxg5 {[%clk 0:00:22]} 41. hxg5 {[%clk 0:01:12]}  Rd5 {[%clk 0:00:22]} 42. g6 {[%clk 0:01:06]}  Bg8 {[%clk 0:00:16]} 43. Rb8 {[%clk 0:01:05]}  Rxf5 {[%clk 0:00:02]} 44. Rxg8 {[%clk 0:01:04]} 1-0


[Site "https://www.chess.com"]